[Event "Swietokrzyskie IM Chess-ch 2022"]
[Site "Zagnansk"]
[Date "2022.05.04"]
[Round "6.1"]
[White "Sieciechowicz, IM Marcin"]
[Black "Wikar, WFM Martyna"]
[Result "1/2-1/2"]
[ECO "E91"]
[WhiteElo "2388"]
[BlackElo "2197"]
[Annotator "TA"]
[PlyCount "171"]
[EventDate "2022.04.29"]
[EventCountry "POL"]
[SourceTitle "playchess.com"]
[Source "ChessBase"]
[SourceQuality "1"]
[TimeControl "40/5400+30:1800+30"]

{[%evp 21,171,21,67,70,124,40,99,58,36,29,31,27,26,35,47,39,25,7,15,0,101,55,50,17,6,5,10,5,5,6,0,0,0,0,0,-44,-60,-35,-52,-41,0,0,0,0,0,0,0,0,0,0,0,0,0,0,0,0,0,0,0,-14,-6,-19,0,-26,-15,-39,-56,-56,-31,-107,-130,-126,-78,-80,-80,-92,-58,-70,0,-85,-72,-186,-34,-25,-24,-84,-43,-43,-43,-43,-43,-43,-43,-187,-100,-108,-110,-135,-27,-27,-27,-27,-27,-29,-30,-36,-30,-30,-35,-38,-27,-65,-66,-125,-125,-125,-125,-125,-103,-125,-91,-116,-64,-64,-64,-64,-33,-43,-13,-13,-13,-13,-12,-11,-12,-12,-12,-13,0,-14,0,-15,-14,-28,-24,-22,-23,-31,-36,-36,-36,-77]} 1. d4 {[%emt 0:00:06]} Nf6 {[%emt 0:00:08]} 2. c4 {[%emt 0:00:05]} g6 {[%emt 0:00:15]} 3. Nc3 {[%emt 0:00:04]} Bg7 {[%emt 0:00:05]} 4. e4 {[%emt 0:00:06]} d6 {[%emt 0:00:22]} 5. Nf3 {[%emt 0:00:05]} O-O {[%emt 0:00:13]} 6. Be2 {[%emt 0:00:10]} Nc6 {[%emt 0:01:11]} 7. O-O {[%emt 0:00:53]} e5 {[%emt 0:00:09]} 8. d5 {[%emt 0:00:06]} Ne7 {[%emt 0:00:04]} 9. Nd2 {[%emt 0:00:09]} Ne8 {[%emt 0:01:04]} 10. b4 {[%emt 0:01:02]} f5 {[%emt 0:01:08]} 11. c5 {[%emt 0:01:41]} Rf7 {[%emt 0:03:55]} (11... a5 $11) 12. a4 {[%emt 0:03:26] White is more active. E97: King's Indian: Classical Main Line (6...e5 7 0-0 Nc6): 8 Be3 and 8 d5 Ne7, not 9 Ne1.} Nf6 {[%emt 0:10:13]} (12... a5 $14) 13. Ba3 {[%emt 0:12:35]} (13. f3 $16) 13... Bf8 {[%emt 0:06:20]} (13... fxe4 $14 14. cxd6 cxd6) 14. cxd6 {[%emt 0:06:47] White is better.} cxd6 {[%emt 0:00:09]} 15. b5 {[%emt 0:01:01]} g5 {[%emt 0:03:30]} 16. Nc4 {[%emt 0:12:11]} Ng6 {[%emt 0:00:43]} 17. exf5 {[%emt 0:03:18]} Bxf5 {[%emt 0:01:04]} 18. Ne3 {[%emt 0:01:18] [#]} Bd7 $146 {[%emt 0:02:43]} ({Predecessor:} 18... Bc8 19. Re1 Nf4 20. Bf1 b6 21. Rc1 Qd7 22. Qc2 Bb7 23. Qb3 Ng4 24. Ncd1 Nf6 {1-0 (92) Lukey,S (2244)-Wang,O (1942) Rotorua 2011}) 19. Re1 {[%emt 0:12:05]} Rc8 {[%emt 0:02:55]} 20. Rc1 {[%emt 0:03:14]} Qb6 {[%emt 0:06:50]} (20... Nf4 $11) 21. Bf1 {[%emt 0:07:03]} ({White should try} 21. g3 $16) 21... Qd4 {[%emt 0:12:49]} 22. Qb3 {[%emt 0:05:01][%cal Ob5b6]} (22. Ne2 $5 {[%cal Re2d4]} Rxc1 23. Bxc1 $11) 22... Qh4 $1 {[%emt 0:08:35]} 23. g3 {[%emt 0:08:13]} Qh6 {[%emt 0:05:16]} 24. Qb1 {[%emt 0:02:56]} Nf4 {[%emt 0:06:45]} 25. Ne4 {[%emt 0:01:24]} Rxc1 {[%emt 0:07:32]} 26. Bxc1 {[%emt 0:01:09]} Nh3+ {[%emt 0:01:18]} (26... N4xd5 $2 27. Nxd5 Nxd5 28. Bc4 $18 (28. Bxg5 Qg6 $16)) 27. Bxh3 {[%emt 0:00:11]} Bxh3 {[%emt 0:00:19]} 28. Nxf6+ {[%emt 0:04:05]} Qxf6 {[%emt 0:00:16]} 29. Qc2 {[%emt 0:01:01]} Be7 {[%emt 0:01:25]} 30. Qe2 {[%emt 0:02:49]} Rf8 {[%emt 0:04:35]} 31. Bd2 {[%emt 0:01:02]} Qg6 {[%emt 0:01:32]} 32. Rc1 {[%emt 0:05:23]} Bd8 {[%emt 0:00:05]} 33. Nc4 {[%emt 0:01:33]} Bf5 {[%emt 0:03:25]} 34. Ne3 {[%emt 0:00:55]} Bd7 {[%emt 0:02:02]} 35. Nc4 {[%emt 0:00:50]} Bf5 {[%emt 0:03:01]} 36. Ne3 {[%emt 0:00:05]} Bh3 {[%emt 0:01:12]} 37. Nc4 {[%emt 0:00:07]} Be7 {[%emt 0:03:00]} 38. a5 {[%emt 0:01:21]} h5 {[%emt 0:01:06]} 39. Ne3 {[%emt 0:00:19]} Bd8 {[%emt 0:00:11] Inhibits Rc7.} 40. Be1 {[%emt 0:00:00]} Kg7 {[%emt 0:00:00]} 41. Qc2 {[%emt 0:23:18]} Qf7 {[%emt 0:17:45]} 42. Qe2 {[%emt 0:01:11]} Bd7 {[%emt 0:04:27]} 43. Rc2 {[%emt 0:01:32]} h4 {[%emt 0:02:14]} 44. Bb4 {[%emt 0:03:35]} Qg6 {[%emt 0:02:12]} 45. Be1 {[%emt 0:02:06]} (45. Rc1 $15) 45... hxg3 $17 {[%emt 0:00:36]} 46. hxg3 {[%emt 0:02:40]} Rh8 {[%emt 0:01:52]} (46... g4 $142 $1 47. Rb2 Rh8) 47. f3 {[%emt 0:01:33]} Qh7 {[%emt 0:00:41]} 48. Qg2 {[%emt 0:00:22] Prevents Qh1+.} Bh3 {[%emt 0:01:11]} 49. Qe2 {[%emt 0:00:44]} Bd7 {[%cal Bh3d7,Bd7b5,Bb5d3,Bd3g6,Bg6f7][%mdl 32] ( -> ...Qh1+). This bishop pair is nice.} (49... Be6 $5 {[%cal Rh7h1]} 50. Qh2 (50. dxe6 $2 Qh1+ 51. Kf2 Rh2+ 52. Ng2 Rxg2+ 53. Ke3 Rxe2+ $19) 50... Qg6 $1 $17) 50. Qg2 {[%emt 0:00:03] Inhibits Qh1+.} Bxb5 {[%emt 0:02:13] aiming for ...b6.} 51. Rb2 {[%emt 0:00:37] [#]} (51. Bb4 $17) 51... Qd3 $2 {[%emt 0:01:25]} (51... b6 $1 $19 {Hoping for ...a6.} 52. g4 (52. Rxb5 $2 Qd3 $19) 52... Bd3) 52. Qd2 $15 {[%emt 0:00:09]} b6 {[%emt 0:01:08][%cal Od3h7]} 53. g4 {[%emt 0:00:32]} (53. Qxd3 $11 {remains equal.} Bxd3 54. Rb3) 53... Kf6 {[%emt 0:01:18]} 54. Qxd3 {[%emt 0:01:09]} Bxd3 {[%emt 0:00:02]} 55. Rb3 {[%emt 0:00:21]} Bg6 {[%emt 0:01:18]} 56. Nc4 $1 {[%emt 0:00:45][%cal Ra5b6]} bxa5 {[%emt 0:00:27]} 57. Bf2 {[%emt 0:00:36]} (57. Nxd6 $15 a4 58. Rb7) 57... Bc7 {[%emt 0:01:14]} (57... Bf7 $19 58. Rd3 Bc7 59. Bxa7 Rc8) 58. Rb7 $17 {[%emt 0:00:45]} Rc8 {[%emt 0:00:27]} 59. Bxa7 {[%emt 0:00:40] [#]} Bf7 {[%emt 0:00:28]} (59... a4 $1 $17 {Threatens to win with ...Bf7.} 60. Be3 Bd3) 60. Nb6 $11 {[%emt 0:01:24]} Bxb6+ {[%emt 0:00:10]} 61. Rxb6 {[%emt 0:00:07][%mdl 4096] Endgame KRB-KRB} Rd8 {[%emt 0:01:21]} 62. Rb5 {[%emt 0:00:44]} a4 {[%emt 0:00:14] White must now prevent ...Ra8.} 63. Ra5 $1 {[%emt 0:00:05]} Rc8 {[%emt 0:00:30]} 64. Rxa4 {[%emt 0:00:33]} Bxd5 {[%emt 0:00:05]} 65. Ra3 {[%emt 0:00:23]} Rc2 {[%emt 0:00:24]} 66. Bf2 {[%emt 0:01:04]} Bc6 {[%emt 0:00:30]} 67. Kg2 {[%emt 0:00:39] [#]} (67. Re3 $15) 67... d5 $1 $17 {[%emt 0:00:11][%cal Bd6d5,Bd5d4][%mdl 32]} 68. Kg3 {[%emt 0:00:21]} d4 {[%emt 0:00:17]} 69. Be1 {[%emt 0:00:17]} Ke6 {[%emt 0:00:37]} 70. Ba5 {[%emt 0:00:07]} Kd7 {[%emt 0:01:25] Inhibits Bd8.} 71. Rd3 {[%emt 0:00:49]} Bb5 {[%emt 0:00:42]} ({Better is} 71... Rb2 $17 72. Bd2 Bb5) 72. Rd2 $15 {[%emt 0:00:17]} Rc1 {[%emt 0:00:53]} 73. Rf2 {[%emt 0:00:59]} Rc8 {[%emt 0:00:35]} 74. Bd2 {[%emt 0:00:09]} Rg8 {[%emt 0:00:13]} 75. Rh2 {[%emt 0:00:05]} Bc6 {[%emt 0:00:16]} 76. Rh7+ {[%emt 0:01:01]} Kd6 {[%emt 0:00:11]} 77. Rf7 {[%emt 0:00:17]} Bd7 {[%emt 0:00:32]} 78. Rh7 {[%emt 0:00:14]} Be8 {[%emt 0:00:52]} 79. Ra7 {[%emt 0:00:40]} Bc6 {[%emt 0:00:50]} 80. Rf7 {[%emt 0:00:05]} Bd7 {[%emt 0:00:37]} 81. Bb4+ {[%emt 0:00:35]} Kc6 {[%emt 0:00:19]} 82. Re7 {[%emt 0:00:54]} Rb8 83. Bd2 {[%emt 0:00:40]} Kd6 {[%emt 0:01:11]} 84. Rg7 Rb2 85. Bxg5 d3 86. Rh7 {Weighted Error Value: White=0.19 (very precise) /Black=0.21 (precise)} 1/2-1/2

[Event "Swietokrzyskie IM Chess-ch 2022"]
[Site "Zagnansk"]
[Date "2022.05.04"]
[Round "6.2"]
[White "Prokofiev, Valentyn"]
[Black "Krzywda, CM Andrzej"]
[Result "1/2-1/2"]
[ECO "A43"]
[WhiteElo "2287"]
[BlackElo "2152"]
[Annotator "TA"]
[PlyCount "162"]
[EventDate "2022.04.29"]
[EventCountry "POL"]
[SourceTitle "playchess.com"]
[Source "ChessBase"]
[SourceQuality "1"]
[TimeControl "40/5400+30:1800+30"]

{[%evp 9,162,27,34,-15,-15,-17,-25,-22,-18,-32,-14,-25,17,13,31,36,30,23,40,18,69,54,89,63,87,87,83,80,99,81,141,138,155,153,162,147,170,153,200,195,258,261,246,254,247,247,502,506,1089,1056,944,304,294,278,271,70,70,57,69,54,78,62,54,58,326,12,10,0,0,0,8,0,0,-90,0,-16,-11,-29,0,0,-7,0,0,0,0,0,179,158,338,255,387,374,326,0,0,0,783,0,0,0,0,0,0,0,0,0,0,0,0,0,0,0,0,0,0,0,0,0,0,0,0,0,0,-12,0,0,0,0,0,0,0,0,0,0,0,0,0,0,0,0,0,0,0,0,0,0,0,0,0,0,0,0,0,0,0]} 1. d4 {[%emt 0:00:02]} Nf6 {[%emt 0:00:05]} 2. Nf3 {[%emt 0:00:03]} c5 {[%emt 0:00:27]} 3. d5 {[%emt 0:00:03]} b5 {[%emt 0:02:32]} 4. Bg5 {[%emt 0:00:04]} g6 {[%emt 0:01:29]} 5. Bxf6 {[%emt 0:04:13]} exf6 {[%emt 0:00:06]} 6. a4 {[%emt 0:04:51] A43: Schmid Benoni.} (6. e3 $14 {is more appropriate.}) 6... b4 $11 {[%emt 0:01:24]} 7. e4 {[%emt 0:01:50]} Bg7 {[%emt 0:01:05]} 8. Bd3 {[%emt 0:01:27] Black has an edge.} O-O {[%emt 0:00:21][%cal Of6f5]} 9. O-O {[%emt 0:11:54]} d6 {[%emt 0:00:11]} 10. Nbd2 {[%emt 0:00:07] [#]} Re8 $146 {[%emt 0:04:14]} ({Predecessor:} 10... Nd7 11. Nc4 Ne5 12. Nfd2 Re8 13. Rb1 a5 14. f4 Nxc4 15. Nxc4 Ba6 16. Qf3 Qe7 {½-½ (25) Piedra Salabarria,E (2282)-Munoz Pantoja,M (2456) Barcelona 2020}) 11. Nc4 {[%emt 0:00:32]} Qc7 {[%emt 0:03:38]} 12. Nfd2 {[%emt 0:06:32]} Nd7 {[%emt 0:19:09]} 13. f4 {[%emt 0:09:35] Prevents Ne5.} Ba6 {[%emt 0:03:21]} 14. a5 {[%emt 0:07:49]} Re7 {[%emt 0:02:39]} (14... f5 $11 15. exf5 gxf5) 15. Qf3 {[%emt 0:13:43]} Rae8 {[%emt 0:02:10][%cal Of6f5]} 16. Rad1 {[%emt 0:01:25]} Bb7 {[%emt 0:01:48][%cal Of6f5]} 17. Qg3 {[%emt 0:02:09]} Ba6 {[%emt 0:06:04]} 18. b3 {[%emt 0:06:44]} Bxc4 {[%emt 0:08:08]} 19. Nxc4 {[%emt 0:00:07]} Rd8 {[%emt 0:06:34]} (19... Rxe4 $142 20. Bxe4 Rxe4) 20. Kh1 {[%emt 0:04:27]} Ree8 {[%emt 0:00:25]} 21. Rf3 {[%emt 0:00:59]} Nf8 {[%emt 0:07:35]} 22. Rdf1 {[%emt 0:06:08]} Rd7 {[%emt 0:02:11]} 23. h4 {[%emt 0:04:36]} Qb7 {[%emt 0:04:10]} (23... Rdd8 $16 24. h5 Qe7) 24. f5 {[%emt 0:01:23]} Qc7 {[%emt 0:02:05]} (24... Qb8 $142 25. fxg6 fxg6) 25. fxg6 $18 {[%emt 0:03:01]} fxg6 {[%emt 0:02:58]} 26. Rxf6 {[%emt 0:02:46]} Bxf6 {[%emt 0:02:24]} 27. Rxf6 {[%emt 0:00:02][%cal Rc4d6]} Red8 $2 {[%emt 0:03:53]} (27... Rg7 {might work better.} 28. Qxd6 (28. Nxd6 Nd7 $18) 28... Rge7) 28. e5 {[%emt 0:03:58]} dxe5 {[%emt 0:01:44]} (28... Rf7 $142 29. Rxf7 (29. exd6 Qb7 $16) 29... Qxf7 30. Nxd6 Rxd6) 29. d6 {[%emt 0:00:01]} Qb8 {[%emt 0:03:59]} 30. Qxe5 $2 {[%emt 0:03:16]} (30. h5) 30... Re8 {[%emt 0:01:10]} 31. Qxc5 {[%emt 0:00:37]} Qd8 {[%emt 0:01:30]} 32. Qd5+ $2 {[%emt 0:01:29]} (32. Qf2 $1 $18) 32... Kg7 $1 $14 {[%emt 0:00:14]} 33. Rf4 {[%emt 0:00:10] 0x0.00272e3e94d9dp-1022s more active pieces.} Re1+ {[%emt 0:01:18]} 34. Kh2 {[%emt 0:00:04]} Ne6 {[%emt 0:00:12] Inhibits Qd4+.} 35. Rg4 {[%emt 0:01:12]} (35. Re4 Qf6 $1 $11) 35... Qf6 $1 {[%emt 0:00:43]} 36. h5 {[%emt 0:00:39]} Qa1 $2 {[%emt 0:03:43][%mdl 8192]} (36... Qf2 $2 37. hxg6 h6 38. Be4 $18 (38. Re4 Rxe4 39. Qxe4 Qf4+ 40. Qxf4 Nxf4 $16)) ({Black should try} 36... Nf4 $1 $14 37. Qf5 Qxf5 38. Bxf5 Rd8) 37. Re4 $2 {[%emt 0:00:28]} (37. hxg6 Rh1+ 38. Kg3 Qe1+ 39. Kf3 Qd1+ 40. Kg3 Qe1+ 41. Kf3 Qd1+ 42. Kg3 Qe1+ $11) (37. Kg3 $18) 37... Rxe4 $11 {[%emt 0:01:46]} 38. Bxe4 {[%emt 0:00:24]} Qf6 {[%emt 0:00:50]} 39. g3 {[%emt 0:00:17]} Ng5 {[%emt 0:00:36]} 40. Bg2 {[%emt 0:00:00][%cal Oh5h6] Strongly threatening h6+!} Nf7 {[%emt 0:00:00]} 41. Qb5 {[%emt 0:22:39]} (41. Qc5 $11 {keeps the balance.}) 41... Rd8 {[%emt 0:17:24]} ({Better is} 41... Qf5 $1 $17 {[%cal Rf5b5]} 42. Qxf5 (42. Qxb4 Qxh5+ 43. Kg1 Qd1+ 44. Kh2 Qxc2 $17) 42... gxf5) 42. Qxb4 {[%emt 0:01:57]} gxh5 {[%emt 0:01:13]} 43. Ne3 {[%emt 0:04:41]} Rxd6 {[%emt 0:02:30]} 44. Qc5 $36 {[%emt 0:00:49][%csl LRa7,LRh5][%mdl 2048] And now Nf5+ would win. Black is under pressure.} Kh8 {[%emt 0:04:47] Black wants to play ...h4.} 45. Qxa7 {[%emt 0:02:51]} ({Much worse is} 45. Nc4 Qd4 46. Qf5 Rf6 $17) 45... Ne5 {[%emt 0:02:58]} 46. Qa8+ {[%emt 0:00:14]} Rd8 {[%emt 0:00:17]} 47. Qe4 {[%emt 0:00:04][%cal Oa5a6] Threatens to win with a6!} Re8 $2 {[%emt 0:01:45]} (47... Rd4 $11 {and Black has nothing to worry.} 48. Qf5 (48. Nd5 Rxd5 49. Qxd5 Ng4+ 50. Kh3 Nf2+ 51. Kh2 Ng4+ 52. Kh3 Nf2+ 53. Kh2 Ng4+ $11) 48... Ng4+ 49. Kh3 Nf2+ 50. Kh2 Ng4+ 51. Kh3 Nf2+ 52. Kh2 Ng4+) 48. Kh1 {[%emt 0:01:24]} Rd8 $2 {[%emt 0:04:07]} (48... Re6 $16) 49. a6 {[%emt 0:00:36]} Ng4 {[%emt 0:00:23]} (49... Nd7 $142 50. Qc6 Qd4) 50. Nxg4 $18 {[%emt 0:00:26]} hxg4 {[%emt 0:00:15][%mdl 4096] Endgame KQR-KQB} 51. Qc6 $2 {[%emt 0:00:39]} ({Inferior is} 51. Qxg4 Qxa6 52. Qg5 Rd1+ 53. Kh2 Qe2 $11) (51. Qf4 $1 $18 {[%cal Rf4f6]} Qg6 52. Qe5+ Kg8 53. Bd5+ Kf8 54. Kg1 Qb6+ 55. Kg2) 51... Rd6 $11 {[%emt 0:00:37]} 52. Qc8+ {[%emt 0:00:25]} Rd8 $2 {[%emt 0:00:01][%mdl 8192] [#]} (52... Kg7 $11 53. Qxg4+ Kf8) 53. Qxg4 $2 {[%emt 0:00:30]} ({White has to play} 53. Qxd8+ $1 $18 {[%mdl 512]} Qxd8 54. a7) 53... Qxa6 {[%emt 0:00:10] The position is equal.} 54. Qg5 {[%emt 0:00:32]} Qd6 {[%emt 0:01:04]} 55. Kh2 {[%emt 0:00:30]} Rf8 {[%emt 0:00:30]} 56. Qe3 {[%emt 0:00:29]} Rf6 {[%emt 0:00:19]} 57. Qc3 {[%emt 0:00:06]} Kg8 {[%emt 0:00:26]} 58. Qc8+ {[%emt 0:00:56]} Kg7 {[%emt 0:00:24]} 59. Qc3 {[%emt 0:00:09]} Kf7 {[%emt 0:00:33]} 60. b4 {[%emt 0:00:49]} Rh6+ {[%emt 0:00:55]} 61. Bh3 {[%emt 0:00:34]} Qe6 {[%emt 0:00:43]} 62. Qf3+ {[%emt 0:00:03]} Kg7 {[%emt 0:00:27]} 63. Qg2 {[%emt 0:00:45]} Qb6 {[%emt 0:00:32]} 64. Qd2 {[%emt 0:00:43]} Rf6 {[%emt 0:00:30] ...Rf2+ is the strong threat.} 65. Qd7+ {[%emt 0:00:22]} Kg8 {[%emt 0:00:43]} 66. Qd5+ {[%emt 0:00:24]} Kg7 {[%emt 0:00:17][%mdl 1024] Black has compensation.} 67. Qg5+ {[%emt 0:00:39]} Kf8 {[%emt 0:00:32]} 68. b5 {[%emt 0:00:17]} h6 {[%emt 0:00:44]} 69. Qe5 {[%emt 0:00:44]} Qf2+ {[%emt 0:00:15]} 70. Kh1 {[%emt 0:00:34]} Rf3 {[%emt 0:00:35]} 71. Qh8+ {[%emt 0:00:20]} Ke7 {[%emt 0:00:21] ( -> ...Qe1+)} 72. Qg7+ {[%emt 0:00:30]} Kd6 {[%emt 0:00:26]} 73. Bg2 {[%emt 0:00:38]} Rxg3 {[%emt 0:00:43][%csl Gg3][%cal Rf2g2]} 74. Qxh6+ {[%emt 0:00:10]} Kc5 {[%emt 0:00:21][%csl Gg3][%cal Rf2g2]} 75. Qc6+ {[%emt 0:00:39]} Kb4 {[%emt 0:00:06]} 76. b6 {[%emt 0:00:37] aiming for b7. Chess con chili.} Rxg2 {[%emt 0:01:06]} 77. Qxg2 {[%emt 0:00:17]} Qxb6 {[%emt 0:00:22]} 78. Qe4+ {[%emt 0:00:32]} Kc3 {[%emt 0:00:33]} 79. Qd3+ {[%emt 0:00:02]} Kb4 {[%emt 0:00:32]} 80. Kg2 {[%emt 0:00:50]} Qf6 {[%emt 0:00:34]} 81. Kg3 {[%emt 0:00:39]} Kc5 {[%emt 0:00:24] Weighted Error Value: White=0.55/Black=0.31} 1/2-1/2

[Event "Swietokrzyskie IM Chess-ch 2022"]
[Site "Zagnansk"]
[Date "2022.05.04"]
[Round "6.3"]
[White "Nowak, FM Lukasz"]
[Black "Vlachos, IM Anatole"]
[Result "0-1"]
[ECO "C54"]
[WhiteElo "2376"]
[BlackElo "2406"]
[Annotator "TA"]
[PlyCount "142"]
[EventDate "2022.04.29"]
[EventCountry "POL"]
[SourceTitle "playchess.com"]
[Source "ChessBase"]
[SourceQuality "1"]
[TimeControl "40/5400+30:1800+30"]

{[%evp 17,142,0,7,5,0,0,0,0,35,8,10,1,1,10,0,6,18,0,0,0,22,5,203,199,186,190,209,206,212,208,209,192,194,192,190,83,87,10,83,95,97,77,69,0,86,42,38,0,0,0,0,0,268,-333,-333,-333,-314,-310,-309,-306,-289,-338,-321,-338,-237,-291,-245,-490,-486,-479,-474,-830,-852,-859,-840,-845,-823,-803,-343,-298,-109,-108,-88,-88,-88,-88,-88,-88,-88,-108,-77,-109,-77,-88,-88,-95,-36,-36,-36,-34,-33,-731,-702,-629,-606,-606,-606,-525,-2677,-29966,-29962,-29969,-29970,-29969,-29964,-29975,-29976,-29976,-29978,-29981,-29978,-29974,-29975,-29968,-6071,-921,-921]} 1. e4 {[%emt 0:00:05]} e5 {[%emt 0:00:07]} 2. Nf3 {[%emt 0:00:08]} Nc6 {[%emt 0:00:18]} 3. Bc4 {[%emt 0:00:10]} Bc5 {[%emt 0:00:14]} 4. c3 {[%emt 0:00:10]} Nf6 {[%emt 0:00:09]} 5. d4 {[%emt 0:00:10]} exd4 {[%emt 0:00:16]} 6. e5 {[%emt 0:00:08]} d5 {[%emt 0:00:47]} 7. Bb5 {[%emt 0:00:13]} Ne4 {[%emt 0:00:10]} 8. cxd4 {[%emt 0:00:12]} Bb6 {[%emt 0:00:25]} 9. Nc3 {[%emt 0:00:12]} O-O {[%emt 0:00:37]} 10. Be3 {[%emt 0:00:19] C54: Giuoco Piano: 4 c3 Nf6, main lines with 5 d4 and 5 d3.} Bg4 {[%emt 0:02:14]} 11. h3 {[%emt 0:00:12]} Bh5 {[%emt 0:00:07]} 12. Qc2 {[%emt 0:00:13] The position is equal.} f5 {[%emt 0:02:38] [#] Recently 12...Nxc3 got a lot of attention.} 13. Nxd5 {[%emt 0:01:45]} Ba5+ $1 {[%emt 0:00:06]} (13... Qxd5 $2 14. Bc4 Bf7 15. Bxd5 $18) 14. Ke2 {[%emt 0:17:28]} (14. Nc3 Nxc3 15. bxc3 Bxf3 16. gxf3 Nxd4 $17) 14... Nxd4+ {[%emt 0:01:30]} 15. Bxd4 {[%emt 0:00:17][%cal Oh1d1]} Nd2 $1 {[%emt 0:00:03]} (15... Qxd5 $2 16. Bc4 Bf7 17. Bxd5 $18) 16. Qc5 {[%emt 0:00:17]} Ne4 {[%emt 0:00:24] Chess con chili.} 17. Qc2 {[%emt 0:00:39]} Nd2 $1 {[%emt 0:00:03]} (17... Qxd5 $2 18. Bc4 Bf7 19. Bxd5 $18) 18. Qc5 {[%emt 0:00:10]} Ne4 {[%emt 0:00:05]} 19. Qc4 {[%emt 0:07:28] [#]} Nd2 $146 {[%emt 0:06:38]} (19... Bf7 $11) ({Predecessor:} 19... Bf7 20. Nf6+ Nxf6 21. e6 Qe7 22. Bc5 Qxe6+ 23. Qxe6 Bxe6 24. Bxf8 Kxf8 25. Rhc1 Bb6 26. Bc4 Bd7 27. Kf1 Ne4 {½-½ (84) Pichot,A (2630)-Dubov,D (2710) chess24.com INT 2021}) 20. Nf6+ $1 $18 {[%emt 0:03:16]} Kh8 {[%emt 0:00:05]} 21. Nxh5 {[%emt 0:00:11]} Nxc4 {[%emt 0:00:26]} 22. Bxc4 {[%emt 0:00:17]} c5 {[%emt 0:05:58]} 23. Be3 {[%emt 0:02:49]} (23. Bxc5 $2 Qc8 24. Rhc1 (24. b4 $2 Bxb4 25. Nf4 Qxc5 $19) 24... Qxc5 $19) 23... b5 {[%emt 0:05:15]} 24. Be6 {[%emt 0:11:43]} (24. Bxb5 Qb6 25. a4 a6 $15) 24... Qe7 {[%emt 0:06:52]} 25. Bd5 {[%emt 0:02:11]} Rac8 {[%emt 0:06:29]} 26. h4 {[%emt 0:13:56]} (26. Bg5 $18 {and White stays clearly on top.} Qc7 27. Rhd1) 26... Bc7 $16 {[%emt 0:14:00]} 27. Rhe1 {[%emt 0:29:26]} ({Better is} 27. Bf4 $1 $16) 27... Bxe5 {[%emt 0:07:11]} (27... f4 $1 $11 {keeps the balance.} 28. Nxf4 (28. Bxf4 Qd7 $17) 28... Bxe5) 28. Kf1 $1 {[%emt 0:00:10]} (28. Bg5 Qd6 29. Kf1 Bxb2 $11) 28... Qd7 {[%emt 0:13:25]} 29. Rad1 {[%emt 0:03:27]} Bxb2 {[%emt 0:01:15]} 30. Ng5 {[%emt 0:01:13]} ({White should try} 30. Nf4 $1 $14) 30... b4 {[%emt 0:05:14]} (30... Bc3 $11 31. Be6 Qe8 32. Bxc5 Bxe1 33. Bxf8 Qxh5 34. Nf7+ Kg8) 31. Kg1 {[%emt 0:01:47] Black must now prevent Be6.} Bc3 {[%emt 0:05:36]} 32. Be6 {[%emt 0:01:48][%mdl 64] Pin. This bishop pair is nice.} Qe8 {[%emt 0:00:32]} 33. Bxc8 {[%emt 0:00:30][%cal Oe3c5]} Bxe1 {[%emt 0:02:28]} 34. Be6 {[%emt 0:00:24] Nf4 is the strong threat.} h6 $2 {[%emt 0:01:13][%mdl 8192]} 35. Bf7 $4 {[%emt 0:02:26][%mdl 8192]} Rxf7 $19 {[%emt 0:02:41]} 36. Rd8 {[%emt 0:00:41]} Rf8 {[%emt 0:00:14]} 37. Rxe8 {[%emt 0:00:09]} Rxe8 {[%emt 0:00:02]} 38. Nf7+ {[%emt 0:01:06]} Kh7 {[%emt 0:02:57] Hoping for ...c4.} ({And not} 38... Kg8 39. Nxh6+ $1 Kh7 40. Nxf5 $17) 39. Nd6 {[%emt 0:00:25]} Re6 {[%emt 0:01:17]} 40. Bxc5 {[%emt 0:00:00]} Bd2 {[%emt 0:00:00] Prevents Nf4.} 41. Ng3 {[%emt 0:24:05]} a5 {[%emt 0:19:22]} 42. Ndxf5 $2 {[%emt 0:03:28]} (42. Nc4 Rc6 43. Nxd2 Rxc5 44. Nb3) 42... Re1+ {[%emt 0:02:05]} 43. Nf1 {[%emt 0:00:20]} Bc3 {[%emt 0:00:20]} 44. Bb6 {[%emt 0:04:43]} (44. N5e3 $142 Re2 45. Nd5) 44... a4 $1 {[%emt 0:00:20] And now ...b3 would win.} 45. N5e3 {[%emt 0:00:19]} Ra1 {[%emt 0:01:59]} 46. Ba5 {[%emt 0:00:18]} Rxa2 {[%emt 0:00:50]} 47. Nd5 {[%emt 0:00:14]} Bd4 {[%emt 0:02:23]} (47... Be1 $142 48. Nxb4 Bxf2+ 49. Kh2 Rb2) 48. Bxb4 {[%emt 0:00:20]} a3 $2 {[%emt 0:02:19]} (48... Rxf2 $19 49. Nfe3 Rb2) 49. Nde3 $17 {[%emt 0:01:14]} Bxe3 {[%emt 0:05:14] Black is more active.} 50. Nxe3 {[%emt 0:00:28]} Ra1+ {[%emt 0:00:02]} 51. Kh2 {[%emt 0:00:11]} a2 {[%emt 0:00:01][%mdl 1024] Black has strong compensation.} 52. Bc3 {[%emt 0:00:13]} Rc1 {[%emt 0:00:10]} 53. Bb2 {[%emt 0:00:24]} Kg6 {[%emt 0:00:14][%cal Oh6h5]} 54. g3 {[%emt 0:00:16]} Kf7 {[%emt 0:00:59]} 55. Kg2 {[%emt 0:00:10]} g6 {[%emt 0:00:13]} 56. Ng4 {[%emt 0:00:32] [#]} Rb1 {[%emt 0:02:11]} (56... Ke6 $1 $17 57. Nxh6 Kd5 $1) 57. Nxh6+ $15 {[%emt 0:00:29]} Ke6 {[%emt 0:00:02]} 58. Bg7 {[%emt 0:02:01]} Kd5 {[%emt 0:00:26] aiming for ...Kc4.} 59. Ng4 $2 {[%emt 0:00:48][%mdl 8192] [#]} (59. g4 $15) 59... Kc4 $1 $19 {[%emt 0:00:05] Strongly threatening ...Kb3.} 60. Ne5+ {[%emt 0:00:30] [#]} Kb3 $1 {[%emt 0:00:39]} 61. Nd3 {[%emt 0:00:21]} Kc2 {[%emt 0:01:03]} 62. Nf4 {[%emt 0:01:16]} Rb2 {[%emt 0:00:29]} 63. Bxb2 {[%emt 0:00:07]} Kxb2 {[%emt 0:00:02]} 64. Nxg6 {[%emt 0:00:07]} a1=Q {[%emt 0:00:03]} 65. Nf4 {[%emt 0:00:11]} Kc3 {[%emt 0:00:14]} 66. Ne2+ {[%emt 0:01:12]} Kd2 {[%emt 0:00:24]} 67. Nf4 {[%emt 0:00:13]} Qa8+ {[%emt 0:00:09]} 68. Kg1 {[%emt 0:00:19]} Qf3 {[%emt 0:00:29]} 69. h5 {[%emt 0:00:47]} Kd1 {[%emt 0:00:45]} 70. h6 {[%emt 0:00:58]} Qc6 {[%emt 0:00:12]} (70... Qe4 $142 71. Kh2 Ke1 72. Kh3 Kxf2 73. Kh4 Qe7+ 74. Kg4 Qf6 75. h7 Qg7+ 76. Kf5 Qxh7+ 77. Ke5 Qg7+ 78. Ke4 Qg4 79. Ke5 Qxg3 80. Kf5 Qf3 81. Ke5 Qe3+ 82. Kf5 Kf3 83. Ne6 Qe4+ 84. Kf6 Kg4 85. Ng7 Qc6+ 86. Ne6 Qd6 87. Kf7 Kf5 88. Ng7+ Ke5 89. Ke8 Qc7 90. Kf8 Qd7 91. Kg8 Kf6 92. Nh5+ Kg5 93. Nf4 Kxf4 94. Kf8 Kf5 95. Kg8 Kg6 96. Kh8 Qh7#) 71. h7 {[%emt 0:00:34]} Qh6 {[%emt 0:00:03] Quite a comeback for Black.  Weighted Error Value: White=0.38/Black=0.32} 0-1